[Event "*** Titled Tuesday Blitz"]
[Site "Chess.com"]
[Date "2021.04.06"]
[Round "8"]
[White "hansen"]
[Black "scarabee43"]
[Result "0-1"]
[WhiteElo "2816"]
[BlackElo "2638"]
[TimeControl "180+1"]
[EndTime "11:29:48 PDT"]
[Termination "scarabee43 won by resignation"]

1. e4 {[%clk 0:01:22.8]} 1... c5 {[%clk 0:02:59.5]} 2. Nf3 {[%clk 0:01:19.8]}
2... e6 {[%clk 0:02:59.8]} 3. d4 {[%clk 0:01:19]} 3... cxd4 {[%clk 0:02:59.9]}
4. Nxd4 {[%clk 0:01:19.9]} 4... Nc6 {[%clk 0:03:00]} 5. Nc3 {[%clk 0:01:20.4]}
5... Qc7 {[%clk 0:03:00.2]} 6. Be3 {[%clk 0:01:19.3]} 6... a6 {[%clk 0:03:00.3]}
7. Qd2 {[%clk 0:01:19.2]} 7... Nf6 {[%clk 0:02:58.3]} 8. O-O-O {[%clk
0:01:18.6]} 8... Bb4 {[%clk 0:02:55.2]} 9. f3 {[%clk 0:01:18.7]} 9... b5 {[%clk
0:02:54.6]} 10. a3 {[%clk 0:01:18]} 10... Ba5 {[%clk 0:02:46.3]} 11. Nb3 {[%clk
0:01:16.5]} 11... Bb6 {[%clk 0:02:43.8]} 12. Bxb5 {[%clk 0:01:12.8]} 12... Bxe3
{[%clk 0:02:35.8]} 13. Qxe3 {[%clk 0:01:12.4]} 13... axb5 {[%clk 0:02:36.2]} 14.
Nxb5 {[%clk 0:01:12.9]} 14... Qb8 {[%clk 0:02:31.6]} 15. Nd6+ {[%clk 0:01:11.6]}
15... Kf8 {[%clk 0:02:31.9]} 16. Rd2 {[%clk 0:00:44.8]} 16... Ra7 {[%clk
0:02:23.1]} 17. Rhd1 {[%clk 0:00:41.9]} 17... Ne8 {[%clk 0:02:19.8]} 18. Nc5
{[%clk 0:00:37.5]} 18... Nxd6 {[%clk 0:02:09.1]} 19. Rxd6 {[%clk 0:00:37.6]}
19... Ne5 {[%clk 0:01:57.9]} 20. Qf4 {[%clk 0:00:32.3]} 20... Nc4 {[%clk
0:01:47.1]} 21. Nxe6+ {[%clk 0:00:27.8]} 21... Kg8 {[%clk 0:01:47.3]} 22. b3
{[%clk 0:00:09.7]} 22... Nxd6 {[%clk 0:01:46.1]} 23. Nxg7 {[%clk 0:00:09.1]}
23... Kxg7 {[%clk 0:01:15]} 24. Rxd6 {[%clk 0:00:09.1]} 24... Ra6 {[%clk
0:00:34]} 25. Qf6+ {[%clk 0:00:02.7]} 25... Kg8 {[%clk 0:00:31.4]} 26. Qd8+
{[%clk 0:00:02.8]} 26... Kg7 {[%clk 0:00:30.5]} 27. Qg5+ {[%clk 0:00:02.7]}
27... Kf8 {[%clk 0:00:29.9]} 28. Qd8+ {[%clk 0:00:03.1]} 28... Kg7 {[%clk
0:00:30]} 29. Qg5+ {[%clk 0:00:03.3]} 29... Kf8 {[%clk 0:00:30.1]} 30. Qe5
{[%clk 0:00:03.7]} 30... Qxd6 {[%clk 0:00:27.3]} 31. Qxh8+ {[%clk 0:00:03.4]}
31... Ke7 {[%clk 0:00:27.4]} 32. Qc3 {[%clk 0:00:03.7]} 32... Bb7 {[%clk
0:00:25.6]} 33. a4 {[%clk 0:00:03.6]} 33... Rc6 {[%clk 0:00:24.9]} 34. Qe3
{[%clk 0:00:04.1]} 34... Qc5 {[%clk 0:00:24.6]} 35. Qd2 {[%clk 0:00:03.9]} 35...
Rd6 {[%clk 0:00:23.7]} 36. Qe1 {[%clk 0:00:03]} 36... Ba6 {[%clk 0:00:22.1]} 37.
Kb2 {[%clk 0:00:03]} 37... Rc6 {[%clk 0:00:21.3]} 38. c3 {[%clk 0:00:02.6]}
38... Rg6 {[%clk 0:00:20]} 39. g4 {[%clk 0:00:02.4]} 39... h5 {[%clk 0:00:19.3]}
40. h3 {[%clk 0:00:02.4]} 40... hxg4 {[%clk 0:00:19.6]} 41. hxg4 {[%clk
0:00:03.3]} 41... Rh6 {[%clk 0:00:20]} 42. Qd2 {[%clk 0:00:02.3]} 42... Qd6
{[%clk 0:00:20.4]} 43. Qg5+ {[%clk 0:00:02.2]} 43... Kf8 {[%clk 0:00:19.7]} 44.
Qd8+ {[%clk 0:00:01.9]} 44... Kg7 {[%clk 0:00:19.8]} 45. Qg5+ {[%clk 0:00:02.8]}
45... Rg6 {[%clk 0:00:19.7]} 46. Qe3 {[%clk 0:00:02.8]} 46... Qd3 {[%clk
0:00:17.9]} 47. Qc5 {[%clk 0:00:02.8]} 47... Qd2+ {[%clk 0:00:17.3]} 48. Ka3
{[%clk 0:00:03.2]} 48... Qd6 {[%clk 0:00:17.6]} 49. Qxd6 {[%clk 0:00:02.7]}
49... Rxd6 {[%clk 0:00:18.3]} 50. b4 {[%clk 0:00:03.5]} 50... Kf6 {[%clk
0:00:18.2]} 51. b5 {[%clk 0:00:04.1]} 51... Bc8 {[%clk 0:00:18.7]} 52. Kb4
{[%clk 0:00:03.9]} 52... Ke7 {[%clk 0:00:19.2]} 53. a5 {[%clk 0:00:04.3]} 53...
Kd8 {[%clk 0:00:19.4]} 54. c4 {[%clk 0:00:04.8]} 54... Kc7 {[%clk 0:00:19.5]}
55. f4 {[%clk 0:00:05.4]} 55... Rd4 {[%clk 0:00:19.6]} 56. g5 {[%clk 0:00:05.3]}
56... Rxe4 {[%clk 0:00:19.9]} 57. f5 {[%clk 0:00:06.2]} 57... Re5 {[%clk
0:00:20.3]} 58. a6 {[%clk 0:00:07.1]} 58... Rxf5 {[%clk 0:00:20.2]} 0-1

[Event "*** Titled Tuesday Blitz"]
[Site "Chess.com"]
[Date "2021.04.06"]
[Round "8"]
[White "KroshkaKami"]
[Black "LenkaPtacnikova"]
[Result "0-1"]
[WhiteElo "2335"]
[BlackElo "2195"]
[TimeControl "180+1"]
[EndTime "11:29:49 PDT"]
[Termination "LenkaPtacnikova won on time"]

1. e4 {[%clk 0:03:00.4]} 1... c5 {[%clk 0:02:59.5]} 2. Nf3 {[%clk 0:02:58.2]}
2... e6 {[%clk 0:02:57.5]} 3. d4 {[%clk 0:02:56.4]} 3... cxd4 {[%clk 0:02:57.3]}
4. Nxd4 {[%clk 0:02:57.3]} 4... Nf6 {[%clk 0:02:56.7]} 5. Nc3 {[%clk 0:02:56.2]}
5... Nc6 {[%clk 0:02:57.3]} 6. Ndb5 {[%clk 0:02:52]} 6... Bb4 {[%clk 0:02:57.3]}
7. a3 {[%clk 0:02:49.7]} 7... Bxc3+ {[%clk 0:02:56.8]} 8. Nxc3 {[%clk
0:02:47.2]} 8... d5 {[%clk 0:02:57.4]} 9. Bb5 {[%clk 0:02:44.2]} 9... Nxe4
{[%clk 0:02:50.6]} 10. Nxe4 {[%clk 0:02:40.4]} 10... dxe4 {[%clk 0:02:50.7]} 11.
Qxd8+ {[%clk 0:02:34.7]} 11... Kxd8 {[%clk 0:02:50.1]} 12. Be3 {[%clk
0:02:18.6]} 12... Kc7 {[%clk 0:02:39.4]} 13. O-O-O {[%clk 0:02:04.4]} 13... f6
{[%clk 0:02:20.7]} 14. Rhe1 {[%clk 0:01:52]} 14... Bd7 {[%clk 0:02:17.2]} 15.
Bc5 {[%clk 0:01:49.4]} 15... Ne5 {[%clk 0:02:03.6]} 16. Bd6+ {[%clk 0:01:24.9]}
16... Kb6 {[%clk 0:02:03.3]} 17. Bxd7 {[%clk 0:01:18.7]} 17... Nxd7 {[%clk
0:02:02.8]} 18. Rxe4 {[%clk 0:01:17.3]} 18... e5 {[%clk 0:01:55.7]} 19. Rb4+
{[%clk 0:00:55.6]} 19... Kc6 {[%clk 0:01:54.9]} 20. Be7 {[%clk 0:00:22.8]} 20...
Nb6 {[%clk 0:01:54.6]} 21. Rg4 {[%clk 0:00:15.2]} 21... Rhg8 {[%clk 0:01:50.9]}
22. Rd6+ {[%clk 0:00:11.9]} 22... Kc7 {[%clk 0:01:50.3]} 23. Rd3 {[%clk
0:00:12.3]} 23... Rae8 {[%clk 0:01:47.3]} 24. Bd6+ {[%clk 0:00:11.3]} 24... Kc6
{[%clk 0:01:42.6]} 25. a4 {[%clk 0:00:10.9]} 25... g6 {[%clk 0:01:34.8]} 26. a5
{[%clk 0:00:08.8]} 26... e4 {[%clk 0:01:17.7]} 27. Rc3+ {[%clk 0:00:06]} 27...
Kxd6 {[%clk 0:01:17.4]} 28. axb6 {[%clk 0:00:06.5]} 28... axb6 {[%clk
0:01:17.3]} 29. Rb3 {[%clk 0:00:06.6]} 29... Kc6 {[%clk 0:01:16.4]} 30. Rgg3
{[%clk 0:00:05.7]} 30... Re6 {[%clk 0:01:13.8]} 31. Rgc3+ {[%clk 0:00:06.1]}
31... Kd7 {[%clk 0:01:13.8]} 32. Rb4 {[%clk 0:00:06.5]} 32... Rge8 {[%clk
0:01:09.7]} 33. Rcb3 {[%clk 0:00:06.8]} 33... Kc7 {[%clk 0:01:09.1]} 34. Rc3+
{[%clk 0:00:06.3]} 34... Kb8 {[%clk 0:01:09.3]} 35. Rcb3 {[%clk 0:00:06.8]}
35... e3 {[%clk 0:01:06.5]} 36. fxe3 {[%clk 0:00:06.3]} 36... Rxe3 {[%clk
0:01:05.7]} 37. Rxe3 {[%clk 0:00:06.8]} 37... Rxe3 {[%clk 0:01:04.1]} 38. Kd2
{[%clk 0:00:07.3]} 38... Re6 {[%clk 0:01:02.2]} 39. Rh4 {[%clk 0:00:07.7]} 39...
Re7 {[%clk 0:00:58.1]} 40. Rf4 {[%clk 0:00:06.9]} 40... f5 {[%clk 0:00:57.6]}
41. Rb4 {[%clk 0:00:07.3]} 41... Kc7 {[%clk 0:00:56.8]} 42. Rc4+ {[%clk
0:00:07]} 42... Kd6 {[%clk 0:00:56.5]} 43. Rd4+ {[%clk 0:00:07]} 43... Kc5
{[%clk 0:00:52.8]} 44. Rd8 {[%clk 0:00:06.8]} 44... b5 {[%clk 0:00:50.7]} 45.
Rc8+ {[%clk 0:00:06.6]} 45... Kd5 {[%clk 0:00:48.9]} 46. Rd8+ {[%clk 0:00:06.3]}
46... Ke4 {[%clk 0:00:48.4]} 47. Rd3 {[%clk 0:00:05.5]} 47... Rc7 {[%clk
0:00:43.5]} 48. Re3+ {[%clk 0:00:05]} 48... Kd4 {[%clk 0:00:40.7]} 49. Rd3+
{[%clk 0:00:05]} 49... Ke4 {[%clk 0:00:40.2]} 50. Re3+ {[%clk 0:00:05.3]} 50...
Kd5 {[%clk 0:00:36.2]} 51. Rd3+ {[%clk 0:00:05.2]} 51... Ke5 {[%clk 0:00:36.1]}
52. Re3+ {[%clk 0:00:05.2]} 52... Kf6 {[%clk 0:00:36]} 53. Rb3 {[%clk
0:00:03.4]} 53... Rc5 {[%clk 0:00:35.6]} 54. Kd3 {[%clk 0:00:02.5]} 54... Ke5
{[%clk 0:00:34.9]} 55. Kd2 {[%clk 0:00:02]} 55... Rd5+ {[%clk 0:00:31.5]} 56.
Ke2 {[%clk 0:00:01.7]} 56... Kd6 {[%clk 0:00:30.5]} 57. Re3 {[%clk 0:00:01.6]}
57... Re5 {[%clk 0:00:30.4]} 0-1

[Event "*** Titled Tuesday Blitz"]
[Site "Chess.com"]
[Date "2021.04.06"]
[Round "8"]
[White "AldokhinIvan"]
[Black "CSB7"]
[Result "0-1"]
[WhiteElo "2529"]
[BlackElo "2694"]
[TimeControl "180+1"]
[EndTime "11:29:50 PDT"]
[Termination "CSB7 won by resignation"]

1. e4 {[%clk 0:02:59.7]} 1... e6 {[%clk 0:03:00.9]} 2. d4 {[%clk 0:02:59.2]}
2... d5 {[%clk 0:03:01.3]} 3. Nc3 {[%clk 0:02:59.7]} 3... Nf6 {[%clk 0:03:00.7]}
4. e5 {[%clk 0:02:59.8]} 4... Nfd7 {[%clk 0:03:00.4]} 5. f4 {[%clk 0:03:00.3]}
5... c5 {[%clk 0:02:59.9]} 6. Nf3 {[%clk 0:03:00.9]} 6... Nc6 {[%clk 0:03:00.5]}
7. Be3 {[%clk 0:03:01]} 7... Be7 {[%clk 0:03:00.9]} 8. Qd2 {[%clk 0:03:00.8]}
8... O-O {[%clk 0:03:00.2]} 9. g3 {[%clk 0:02:58.4]} 9... a6 {[%clk 0:02:43.4]}
10. Bg2 {[%clk 0:02:58.4]} 10... b5 {[%clk 0:02:42.5]} 11. O-O {[%clk
0:02:58.4]} 11... b4 {[%clk 0:02:31.7]} 12. Nd1 {[%clk 0:02:36.3]} 12... a5
{[%clk 0:02:28.8]} 13. f5 {[%clk 0:01:57.9]} 13... exf5 {[%clk 0:02:19.8]} 14.
c3 {[%clk 0:01:46.2]} 14... Nb6 {[%clk 0:02:03.1]} 15. b3 {[%clk 0:01:34.6]}
15... c4 {[%clk 0:02:03]} 16. Nh4 {[%clk 0:01:16]} 16... g6 {[%clk 0:01:32.1]}
17. Bh6 {[%clk 0:01:15.2]} 17... Re8 {[%clk 0:01:25.1]} 18. Ne3 {[%clk
0:01:15.3]} 18... bxc3 {[%clk 0:01:13.6]} 19. Qxc3 {[%clk 0:01:10.2]} 19... Bb4
{[%clk 0:00:53.1]} 20. Qb2 {[%clk 0:01:09.7]} 20... c3 {[%clk 0:00:52.2]} 21.
Qf2 {[%clk 0:01:05.1]} 21... Nxd4 {[%clk 0:00:51.6]} 22. Rad1 {[%clk 0:00:23.8]}
22... Bc5 {[%clk 0:00:47.9]} 23. Kh1 {[%clk 0:00:23.5]} 23... Be6 {[%clk
0:00:36.6]} 24. a3 {[%clk 0:00:23.1]} 24... Nxb3 {[%clk 0:00:25.6]} 25. Qf4
{[%clk 0:00:19.8]} 25... Bxe3 {[%clk 0:00:16.8]} 26. Qxe3 {[%clk 0:00:19.3]}
26... d4 {[%clk 0:00:17.2]} 27. Qf4 {[%clk 0:00:19.2]} 27... Nd5 {[%clk
0:00:16.8]} 28. Qf2 {[%clk 0:00:16.8]} 28... Rc8 {[%clk 0:00:10.9]} 29. Nf3
{[%clk 0:00:13.9]} 29... c2 {[%clk 0:00:10.8]} 30. Rc1 {[%clk 0:00:09]} 30...
Nxc1 {[%clk 0:00:10.9]} 31. Bxc1 {[%clk 0:00:08.7]} 31... d3 {[%clk 0:00:11.8]}
32. Ng5 {[%clk 0:00:07.4]} 32... Nc3 {[%clk 0:00:11]} 33. g4 {[%clk 0:00:07.8]}
33... Ne2 {[%clk 0:00:10.4]} 34. Qh4 {[%clk 0:00:07.7]} 34... h5 {[%clk
0:00:06.8]} 35. gxh5 {[%clk 0:00:08.1]} 35... Qe7 {[%clk 0:00:05.3]} 36. h6
{[%clk 0:00:04.3]} 36... Nxc1 {[%clk 0:00:05]} 37. h7+ {[%clk 0:00:04.1]} 37...
Kh8 {[%clk 0:00:05.5]} 38. Qh6 {[%clk 0:00:04.1]} 38... Qf8 {[%clk 0:00:04.1]}
39. Qh4 {[%clk 0:00:03.9]} 39... Qg7 {[%clk 0:00:04.2]} 40. Nf3 {[%clk
0:00:03.5]} 40... Nb3 {[%clk 0:00:02.9]} 41. Nd4 {[%clk 0:00:02.4]} 41... Nxd4
{[%clk 0:00:02.7]} 42. Qxd4 {[%clk 0:00:02]} 42... c1=Q {[%clk 0:00:03.6]} 0-1

[Event "*** Titled Tuesday Blitz"]
[Site "Chess.com"]
[Date "2021.04.06"]
[Round "8"]
[White "Xeniya2005"]
[Black "WPWPWP-2015"]
[Result "1-0"]
[WhiteElo "2334"]
[BlackElo "2427"]
[TimeControl "180+1"]
[EndTime "11:29:52 PDT"]
[Termination "Xeniya2005 won on time"]

1. e4 {[%clk 0:03:00.9]} 1... c5 {[%clk 0:02:53]} 2. Nf3 {[%clk 0:02:59]} 2...
d6 {[%clk 0:02:42.6]} 3. Bb5+ {[%clk 0:02:57.7]} 3... Nd7 {[%clk 0:02:41]} 4.
Ba4 {[%clk 0:02:39.7]} 4... a6 {[%clk 0:02:35.8]} 5. c4 {[%clk 0:02:37]} 5...
Nf6 {[%clk 0:02:35.1]} 6. O-O {[%clk 0:02:35.7]} 6... e5 {[%clk 0:02:31]} 7. d3
{[%clk 0:01:58.6]} 7... Be7 {[%clk 0:02:30.1]} 8. Re1 {[%clk 0:01:50.7]} 8...
O-O {[%clk 0:02:29.3]} 9. Nbd2 {[%clk 0:01:48]} 9... Rb8 {[%clk 0:02:27.9]} 10.
Bb3 {[%clk 0:01:36.1]} 10... b5 {[%clk 0:02:20.3]} 11. Nf1 {[%clk 0:01:30.3]}
11... bxc4 {[%clk 0:02:06.8]} 12. dxc4 {[%clk 0:01:24.7]} 12... Rb7 {[%clk
0:01:54]} 13. Qd3 {[%clk 0:01:15.9]} 13... Nb8 {[%clk 0:01:52.6]} 14. Ba4 {[%clk
0:01:06.4]} 14... Qa5 {[%clk 0:01:45.9]} 15. b3 {[%clk 0:01:03.2]} 15... Bg4
{[%clk 0:01:40.4]} 16. Bd2 {[%clk 0:00:59.4]} 16... Qc7 {[%clk 0:01:39.9]} 17.
h3 {[%clk 0:00:56.4]} 17... Bh5 {[%clk 0:01:35.7]} 18. Ng3 {[%clk 0:00:54.3]}
18... Bg6 {[%clk 0:01:35.4]} 19. Nh4 {[%clk 0:00:51.9]} 19... Nc6 {[%clk
0:00:54.9]} 20. Bxc6 {[%clk 0:00:45.3]} 20... Qxc6 {[%clk 0:00:55.8]} 21. Nhf5
{[%clk 0:00:43.5]} 21... Bd8 {[%clk 0:00:41.8]} 22. Rad1 {[%clk 0:00:33.1]}
22... Rd7 {[%clk 0:00:41]} 23. Qf3 {[%clk 0:00:26]} 23... Ne8 {[%clk 0:00:35]}
24. h4 {[%clk 0:00:21.1]} 24... Nc7 {[%clk 0:00:27.3]} 25. h5 {[%clk 0:00:18.8]}
25... Bxf5 {[%clk 0:00:27.4]} 26. Nxf5 {[%clk 0:00:18.6]} 26... Ne6 {[%clk
0:00:27.3]} 27. Qg4 {[%clk 0:00:18.4]} 27... Bf6 {[%clk 0:00:23.2]} 28. Bh6
{[%clk 0:00:17.4]} 28... Kh8 {[%clk 0:00:22.2]} 29. Be3 {[%clk 0:00:16.6]} 29...
g6 {[%clk 0:00:18]} 30. hxg6 {[%clk 0:00:15.8]} 30... fxg6 {[%clk 0:00:18.9]}
31. Nh6 {[%clk 0:00:15.1]} 31... Nd4 {[%clk 0:00:17.2]} 32. Rd3 {[%clk
0:00:13.8]} 32... Bg7 {[%clk 0:00:16.1]} 33. Qh3 {[%clk 0:00:11.7]} 33... Qc8
{[%clk 0:00:15]} 34. Bg5 {[%clk 0:00:11.3]} 34... Rc7 {[%clk 0:00:14.2]} 35. Qh4
{[%clk 0:00:11.4]} 35... Qe8 {[%clk 0:00:13.5]} 36. Rh3 {[%clk 0:00:11.1]} 36...
Bxh6 {[%clk 0:00:04.8]} 37. Bxh6 {[%clk 0:00:11.1]} 37... Rff7 {[%clk
0:00:04.6]} 38. Bg5 {[%clk 0:00:09.4]} 38... Qe6 {[%clk 0:00:03.5]} 39. f3
{[%clk 0:00:09.2]} 39... Kg8 {[%clk 0:00:03.7]} 40. Kf2 {[%clk 0:00:08.9]} 40...
Rf8 {[%clk 0:00:03.8]} 41. Reh1 {[%clk 0:00:08.4]} 41... Rcf7 {[%clk 0:00:02.8]}
42. Ke3 {[%clk 0:00:08.5]} 42... Re8 {[%clk 0:00:02.6]} 43. Qg3 {[%clk
0:00:07.1]} 43... a5 {[%clk 0:00:02.5]} 44. Rh6 {[%clk 0:00:06.9]} 44... Rg7
{[%clk 0:00:02.2]} 45. Qh4 {[%clk 0:00:06.6]} 45... a4 {[%clk 0:00:02.2]} 46.
Rxh7 {[%clk 0:00:06.3]} 1-0

[Event "*** Titled Tuesday Blitz"]
[Site "Chess.com"]
[Date "2021.04.06"]
[Round "8"]
[White "federicosellitti"]
[Black "Durarbayli"]
[Result "1-0"]
[WhiteElo "2608"]
[BlackElo "2729"]
[TimeControl "180+1"]
[EndTime "11:29:54 PDT"]
[Termination "federicosellitti won on time"]

1. e4 {[%clk 0:03:00.9]} 1... e5 {[%clk 0:02:58.4]} 2. Nc3 {[%clk 0:03:00.9]}
2... Nf6 {[%clk 0:02:56.3]} 3. f4 {[%clk 0:03:01.2]} 3... d5 {[%clk 0:02:55.3]}
4. fxe5 {[%clk 0:03:01]} 4... Nxe4 {[%clk 0:02:55.1]} 5. Qf3 {[%clk 0:03:01.6]}
5... Nxc3 {[%clk 0:02:48]} 6. dxc3 {[%clk 0:03:02.5]} 6... Be6 {[%clk 0:02:47]}
7. Qg3 {[%clk 0:03:02.5]} 7... c6 {[%clk 0:02:43.1]} 8. Nf3 {[%clk 0:03:01.8]}
8... Nd7 {[%clk 0:02:41]} 9. Be3 {[%clk 0:02:54.2]} 9... Qc7 {[%clk 0:02:27.6]}
10. O-O-O {[%clk 0:02:48.6]} 10... O-O-O {[%clk 0:02:24.5]} 11. Bd3 {[%clk
0:02:47.9]} 11... Bc5 {[%clk 0:02:19.7]} 12. Bf4 {[%clk 0:02:44.7]} 12... h6
{[%clk 0:02:13.3]} 13. h4 {[%clk 0:02:44.7]} 13... Be7 {[%clk 0:01:39.9]} 14. h5
{[%clk 0:02:34]} 14... c5 {[%clk 0:01:37.6]} 15. Nh4 {[%clk 0:02:10.9]} 15... c4
{[%clk 0:01:23.9]} 16. Nf5 {[%clk 0:02:10.6]} 16... Bf8 {[%clk 0:01:15.4]} 17.
Nd6+ {[%clk 0:02:10.4]} 17... Bxd6 {[%clk 0:01:15.9]} 18. exd6 {[%clk
0:02:11.3]} 18... Qa5 {[%clk 0:01:16.6]} 19. Be2 {[%clk 0:01:54.1]} 19... Qxa2
{[%clk 0:01:14.1]} 20. Kd2 {[%clk 0:01:54.7]} 20... Nc5 {[%clk 0:01:10.3]} 21.
Bf3 {[%clk 0:01:49.9]} 21... Qxb2 {[%clk 0:00:36.7]} 22. Rhe1 {[%clk 0:01:05]}
22... Rhe8 {[%clk 0:00:22.6]} 23. Ke2 {[%clk 0:00:51]} 23... Qxc2+ {[%clk
0:00:19.3]} 24. Kf1 {[%clk 0:00:51.7]} 24... Qxc3 {[%clk 0:00:19]} 25. Rxd5
{[%clk 0:00:30.6]} 25... Nd3 {[%clk 0:00:18.4]} 26. Rc5+ {[%clk 0:00:27.8]}
26... Nxc5 {[%clk 0:00:17.3]} 27. Bxb7+ {[%clk 0:00:28]} 27... Kxb7 {[%clk
0:00:13.3]} 28. Qxc3 {[%clk 0:00:28.7]} 28... Nd3 {[%clk 0:00:14.2]} 29. Rb1+
{[%clk 0:00:27.2]} 29... Kc6 {[%clk 0:00:11.9]} 30. Qa5 {[%clk 0:00:22.1]} 30...
Rb8 {[%clk 0:00:08.1]} 31. Rxb8 {[%clk 0:00:14.4]} 31... Rxb8 {[%clk 0:00:09]}
32. Qc7+ {[%clk 0:00:14.9]} 32... Kd5 {[%clk 0:00:06.8]} 33. Qxb8 {[%clk
0:00:15.4]} 33... Nxf4 {[%clk 0:00:07]} 34. d7 {[%clk 0:00:15.9]} 34... Bxd7
{[%clk 0:00:06.7]} 35. Qxf4 {[%clk 0:00:16.5]} 35... Be6 {[%clk 0:00:06.4]} 36.
Ke1 {[%clk 0:00:13.7]} 36... a5 {[%clk 0:00:05.3]} 37. Kd2 {[%clk 0:00:13.9]}
37... a4 {[%clk 0:00:04.4]} 38. Kc3 {[%clk 0:00:14.3]} 38... a3 {[%clk 0:00:04]}
39. Qd4+ {[%clk 0:00:14.2]} 39... Kc6 {[%clk 0:00:04.5]} 40. Qa7 {[%clk
0:00:14.7]} 40... Kd5 {[%clk 0:00:04.2]} 41. Qxa3 {[%clk 0:00:14.5]} 41... Ke5
{[%clk 0:00:04.9]} 42. Qc5+ {[%clk 0:00:11.2]} 42... Kf6 {[%clk 0:00:05.8]} 43.
g3 {[%clk 0:00:10.2]} 43... g6 {[%clk 0:00:04.7]} 44. hxg6 {[%clk 0:00:11.1]}
44... fxg6 {[%clk 0:00:04.2]} 45. Qd4+ {[%clk 0:00:11]} 45... Kf7 {[%clk
0:00:04.3]} 46. Qf4+ {[%clk 0:00:10.9]} 46... Kg7 {[%clk 0:00:03.7]} 47. Qe5+
{[%clk 0:00:11.6]} 47... Kf7 {[%clk 0:00:03.3]} 48. Kd4 {[%clk 0:00:11.5]} 48...
h5 {[%clk 0:00:04.2]} 49. Kc5 {[%clk 0:00:10.8]} 1-0

[Event "*** Titled Tuesday Blitz"]
[Site "Chess.com"]
[Date "2021.04.06"]
[Round "8"]
[White "dosto07"]
[Black "SargissyanSargis"]
[Result "0-1"]
[WhiteElo "2255"]
[BlackElo "2381"]
[TimeControl "180+1"]
[EndTime "11:29:54 PDT"]
[Termination "SargissyanSargis won on time"]

1. e4 {[%clk 0:02:46.2]} 1... c5 {[%clk 0:02:56.7]} 2. Nf3 {[%clk 0:02:46]} 2...
d6 {[%clk 0:02:51.7]} 3. Bb5+ {[%clk 0:02:44.6]} 3... Nd7 {[%clk 0:02:44.6]} 4.
d4 {[%clk 0:02:43.4]} 4... cxd4 {[%clk 0:02:41.3]} 5. Qxd4 {[%clk 0:02:43.7]}
5... a6 {[%clk 0:02:39]} 6. Bxd7+ {[%clk 0:02:43.1]} 6... Bxd7 {[%clk
0:02:39.7]} 7. Nc3 {[%clk 0:02:43.1]} 7... e5 {[%clk 0:02:39.4]} 8. Qd3 {[%clk
0:02:43.3]} 8... h6 {[%clk 0:02:39.9]} 9. a4 {[%clk 0:02:42]} 9... Nf6 {[%clk
0:02:40.2]} 10. O-O {[%clk 0:02:42]} 10... Be7 {[%clk 0:02:40.8]} 11. Be3 {[%clk
0:02:27.2]} 11... O-O {[%clk 0:02:28.9]} 12. a5 {[%clk 0:02:23.1]} 12... Be6
{[%clk 0:02:24.9]} 13. Rfd1 {[%clk 0:02:12.5]} 13... Qc7 {[%clk 0:02:13.3]} 14.
Bb6 {[%clk 0:02:06.8]} 14... Qc6 {[%clk 0:02:02.9]} 15. Nd5 {[%clk 0:02:01]}
15... Bxd5 {[%clk 0:01:56.4]} 16. exd5 {[%clk 0:02:00.3]} 16... Qc8 {[%clk
0:01:49.5]} 17. Nd2 {[%clk 0:01:44.5]} 17... Nd7 {[%clk 0:01:49.2]} 18. c4
{[%clk 0:01:19.4]} 18... Nxb6 {[%clk 0:01:45.5]} 19. axb6 {[%clk 0:01:19.3]}
19... f5 {[%clk 0:01:46.2]} 20. b4 {[%clk 0:01:12.1]} 20... e4 {[%clk
0:01:45.2]} 21. Qe2 {[%clk 0:01:05.6]} 21... Bf6 {[%clk 0:01:40.3]} 22. Rac1
{[%clk 0:00:59.2]} 22... a5 {[%clk 0:01:30.6]} 23. c5 {[%clk 0:00:55.2]} 23...
axb4 {[%clk 0:01:30.7]} 24. c6 {[%clk 0:00:46.7]} 24... Bc3 {[%clk 0:01:28.8]}
25. Nc4 {[%clk 0:00:38]} 25... Rf6 {[%clk 0:00:56.4]} 26. c7 {[%clk 0:00:26.7]}
26... Ra6 {[%clk 0:00:47.7]} 27. Qe3 {[%clk 0:00:18.5]} 27... Qe8 {[%clk
0:00:42.1]} 28. Rxc3 {[%clk 0:00:10.4]} 28... bxc3 {[%clk 0:00:41.7]} 29. Qxc3
{[%clk 0:00:11]} 29... Qc8 {[%clk 0:00:37.1]} 30. h3 {[%clk 0:00:09]} 30... Ra8
{[%clk 0:00:32.3]} 31. Qb4 {[%clk 0:00:08.6]} 31... Qd7 {[%clk 0:00:31.9]} 32.
Rc1 {[%clk 0:00:07.1]} 32... h5 {[%clk 0:00:31.3]} 33. Qc3 {[%clk 0:00:05.4]}
33... h4 {[%clk 0:00:29.1]} 34. Nxd6 {[%clk 0:00:01.5]} 34... Rxd6 {[%clk
0:00:27.8]} 35. c8=Q+ {[%clk 0:00:02.4]} 35... Rxc8 {[%clk 0:00:28.3]} 36. Qxc8+
{[%clk 0:00:02.2]} 36... Qxc8 {[%clk 0:00:28.8]} 37. Rxc8+ {[%clk 0:00:02.1]}
37... Kh7 {[%clk 0:00:29.4]} 38. Rc7 {[%clk 0:00:02.4]} 38... Rxd5 {[%clk
0:00:29.5]} 39. Rxb7 {[%clk 0:00:02.1]} 39... Rb5 {[%clk 0:00:29.4]} 40. Kh2
{[%clk 0:00:03]} 40... Rb2 {[%clk 0:00:29]} 41. Rb8 {[%clk 0:00:03.9]} 41...
Rxf2 {[%clk 0:00:27.8]} 42. b7 {[%clk 0:00:04.1]} 42... Rb2 {[%clk 0:00:23.4]}
43. Kg1 {[%clk 0:00:04.6]} 43... Kg6 {[%clk 0:00:18.3]} 44. Kf1 {[%clk
0:00:04.7]} 44... Kg5 {[%clk 0:00:17.5]} 45. Ke1 {[%clk 0:00:03.3]} 45... Kf4
{[%clk 0:00:15.1]} 46. Kd1 {[%clk 0:00:02.8]} 46... g5 {[%clk 0:00:14.5]} 47.
Kc1 {[%clk 0:00:02.7]} 47... Rb6 {[%clk 0:00:13.5]} 48. Kc2 {[%clk 0:00:03]}
48... e3 {[%clk 0:00:13.9]} 49. Kd3 {[%clk 0:00:02.9]} 49... Rd6+ {[%clk
0:00:13.7]} 50. Ke2 {[%clk 0:00:02.9]} 50... Rd2+ {[%clk 0:00:13.6]} 51. Ke1
{[%clk 0:00:02.7]} 51... Rb2 {[%clk 0:00:14.1]} 52. Kf1 {[%clk 0:00:01.3]} 52...
Kg3 {[%clk 0:00:13.6]} 0-1